[Event "*** Titled Tuesday 3|2 Blitz"]
[Site "Chess.com"]
[Date "2016.02.02"]
[Round "7"]
[White "arnacman"]
[Black "ChadaevNikolay"]
[Result "0-1"]
[WhiteElo "2257"]
[BlackElo "2519"]
[TimeControl "180+2"]
[EndTime "12:30:13 PST"]
[Termination "ChadaevNikolay won by resignation"]

1. e4 {[%clk 0:03:01.9]} 1... c6 {[%clk 0:02:57.9]} 2. d4 {[%clk 0:03:02.6]}
2... d5 {[%clk 0:02:59]} 3. Nd2 {[%clk 0:03:04.1]} 3... dxe4 {[%clk 0:02:59.6]}
4. Nxe4 {[%clk 0:03:06]} 4... h6 {[%clk 0:03:00.8]} 5. Nf3 {[%clk 0:02:51.6]}
5... Bf5 {[%clk 0:03:01.1]} 6. Ng3 {[%clk 0:02:45.4]} 6... Bh7 {[%clk
0:03:01.2]} 7. Bd3 {[%clk 0:02:45.3]} 7... Bxd3 {[%clk 0:03:01.2]} 8. Qxd3
{[%clk 0:02:46.3]} 8... e6 {[%clk 0:03:02.2]} 9. Bd2 {[%clk 0:02:42.7]} 9... Nf6
{[%clk 0:03:01.8]} 10. O-O-O {[%clk 0:02:38.4]} 10... Nbd7 {[%clk 0:02:48.6]}
11. Kb1 {[%clk 0:02:38.8]} 11... Be7 {[%clk 0:02:48]} 12. Qe2 {[%clk 0:02:33.7]}
12... O-O {[%clk 0:02:45.7]} 13. Ne5 {[%clk 0:02:25.7]} 13... Qb6 {[%clk
0:02:41.2]} 14. c4 {[%clk 0:02:04.4]} 14... Rfd8 {[%clk 0:02:34.7]} 15. Bc3
{[%clk 0:01:56.7]} 15... Bb4 {[%clk 0:02:26.9]} 16. c5 {[%clk 0:01:47.4]} 16...
Qa5 {[%clk 0:02:24.7]} 17. Nc4 {[%clk 0:01:45.9]} 17... Qb5 {[%clk 0:02:21.7]}
18. Nd6 {[%clk 0:01:31.7]} 18... Qxe2 {[%clk 0:02:16.7]} 19. Nxe2 {[%clk
0:01:31.5]} 19... Bxc3 {[%clk 0:02:17.2]} 20. bxc3 {[%clk 0:01:30.9]} 20... b6
{[%clk 0:02:18]} 21. cxb6 {[%clk 0:01:27.8]} 21... axb6 {[%clk 0:02:17.8]} 22.
Nc4 {[%clk 0:00:58.1]} 22... Ne4 {[%clk 0:02:05.1]} 23. Rhf1 {[%clk 0:00:52.6]}
23... Ra4 {[%clk 0:02:06.1]} 24. Nb2 {[%clk 0:00:51.5]} 24... Ra3 {[%clk
0:02:06.7]} 25. Rd3 {[%clk 0:00:41.9]} 25... Rda8 {[%clk 0:02:07]} 26. f3 {[%clk
0:00:40]} 26... Rxa2 {[%clk 0:02:07.7]} 27. Nc1 {[%clk 0:00:40.6]} 27... Ra1+
{[%clk 0:02:07.8]} 28. Kc2 {[%clk 0:00:41.5]} 28... Nd6 {[%clk 0:02:08]} 29.
Rfd1 {[%clk 0:00:37.2]} 29... Kf8 {[%clk 0:02:07.9]} 30. g4 {[%clk 0:00:31.4]}
30... Ke7 {[%clk 0:02:07.8]} 31. c4 {[%clk 0:00:30.7]} 31... b5 {[%clk
0:02:05.2]} 32. c5 {[%clk 0:00:29.1]} 32... Nc4 {[%clk 0:02:04.9]} 33. Nxc4
{[%clk 0:00:29.5]} 33... bxc4 {[%clk 0:02:06]} 34. Rc3 {[%clk 0:00:29.8]} 34...
R1a4 {[%clk 0:01:59.8]} 35. Rd2 {[%clk 0:00:29.8]} 35... Nf6 {[%clk 0:02:00.6]}
36. Kd1 {[%clk 0:00:21.3]} 36... Nd5 {[%clk 0:02:01.1]} 37. Ne2 {[%clk
0:00:20.2]} 37... Nxc3+ {[%clk 0:01:59.1]} 38. Nxc3 {[%clk 0:00:21.2]} 38... Ra3
{[%clk 0:01:58.1]} 39. Rc2 {[%clk 0:00:20.4]} 39... Rb8 {[%clk 0:01:57.1]} 40.
Ke2 {[%clk 0:00:20.9]} 40... Rab3 {[%clk 0:01:54.2]} 41. Ne4 {[%clk 0:00:21.6]}
41... Rb2 {[%clk 0:01:54.7]} 42. Kd2 {[%clk 0:00:22.8]} 42... Rxc2+ {[%clk
0:01:55]} 43. Kxc2 {[%clk 0:00:24.7]} 43... Rb3 {[%clk 0:01:55.9]} 44. Nd2
{[%clk 0:00:24.9]} 44... Rd3 {[%clk 0:01:48.6]} 45. Nxc4 {[%clk 0:00:24.4]}
45... Rxd4 {[%clk 0:01:49.6]} 46. Ne5 {[%clk 0:00:22.9]} 46... Rd5 {[%clk
0:01:49.7]} 47. Nd3 {[%clk 0:00:21.3]} 47... f5 {[%clk 0:01:47.9]} 48. h3 {[%clk
0:00:21.3]} 48... g6 {[%clk 0:01:46.2]} 49. Kc3 {[%clk 0:00:21.8]} 49... e5
{[%clk 0:01:43.8]} 50. Kc4 {[%clk 0:00:21.8]} 50... Ke6 {[%clk 0:01:44.5]} 51.
gxf5+ {[%clk 0:00:20.2]} 51... gxf5 {[%clk 0:01:45.1]} 52. Nb4 {[%clk
0:00:21.5]} 52... Rd4+ {[%clk 0:01:46.2]} 53. Kc3 {[%clk 0:00:23]} 53... Rxb4
{[%clk 0:01:47.6]} 54. Kxb4 {[%clk 0:00:23.6]} 54... Kd5 {[%clk 0:01:49.2]} 55.
h4 {[%clk 0:00:24.4]} 55... h5 {[%clk 0:01:50.1]} 0-1

[Event "*** Titled Tuesday 3|2 Blitz"]
[Site "Chess.com"]
[Date "2016.02.02"]
[Round "7"]
[White "JusticeBot"]
[Black "gumersindo"]
[Result "1-0"]
[WhiteElo "2430"]
[BlackElo "2234"]
[TimeControl "180+2"]
[EndTime "12:30:50 PST"]
[Termination "JusticeBot won by resignation"]

1. e4 {[%clk 0:03:01.9]} 1... c6 {[%clk 0:02:59.6]} 2. d4 {[%clk 0:03:03]} 2...
d5 {[%clk 0:03:01.1]} 3. Nd2 {[%clk 0:03:04.9]} 3... dxe4 {[%clk 0:03:01.9]} 4.
Nxe4 {[%clk 0:03:06.8]} 4... Bf5 {[%clk 0:03:03.4]} 5. Ng3 {[%clk 0:03:08]} 5...
Bg6 {[%clk 0:03:04.5]} 6. N1e2 {[%clk 0:03:09.9]} 6... e6 {[%clk 0:02:59.3]} 7.
Nf4 {[%clk 0:03:09.7]} 7... Bd6 {[%clk 0:03:00.1]} 8. c3 {[%clk 0:03:11.1]} 8...
Qc7 {[%clk 0:02:51.5]} 9. Qf3 {[%clk 0:03:11.8]} 9... Ne7 {[%clk 0:02:48.7]} 10.
h4 {[%clk 0:03:08.2]} 10... h6 {[%clk 0:02:49]} 11. Nxg6 {[%clk 0:02:48.4]}
11... Nxg6 {[%clk 0:02:50.9]} 12. h5 {[%clk 0:02:43.6]} 12... Bxg3 {[%clk
0:02:41.6]} 13. hxg6 {[%clk 0:02:43.9]} 13... Bd6 {[%clk 0:02:41.2]} 14. Bc4
{[%clk 0:02:23.1]} 14... fxg6 {[%clk 0:02:20]} 15. Bxe6 {[%clk 0:02:19]} 15...
Qe7 {[%clk 0:02:14.7]} 16. Qe4 {[%clk 0:02:20.5]} 16... Kd8 {[%clk 0:02:11.2]}
17. O-O {[%clk 0:01:34.2]} 17... Re8 {[%clk 0:02:08.5]} 18. Re1 {[%clk
0:01:35.8]} 18... Na6 {[%clk 0:02:09.8]} 19. d5 {[%clk 0:01:09.6]} 19... cxd5
{[%clk 0:02:07.6]} 20. Bxd5 {[%clk 0:01:04.2]} 20... Qxe4 {[%clk 0:02:07.3]} 21.
Rxe4 {[%clk 0:01:06.1]} 21... Nc5 {[%clk 0:02:04.5]} 22. Rxe8+ {[%clk
0:01:02.4]} 22... Kxe8 {[%clk 0:02:03.8]} 23. Be3 {[%clk 0:00:57.8]} 23... Rb8
{[%clk 0:02:01.6]} 24. Bd4 {[%clk 0:00:55.4]} 24... Kf8 {[%clk 0:01:58.7]} 25.
Rd1 {[%clk 0:00:55]} 25... b6 {[%clk 0:01:57.3]} 26. b4 {[%clk 0:00:49.3]} 26...
Nd7 {[%clk 0:01:31.5]} 27. a4 {[%clk 0:00:47.2]} 27... Nf6 {[%clk 0:01:28]} 28.
Bb3 {[%clk 0:00:45.8]} 28... Be7 {[%clk 0:01:25.8]} 29. Be5 {[%clk 0:00:44.9]}
29... Rd8 {[%clk 0:01:23.7]} 30. Rxd8+ {[%clk 0:00:42.2]} 30... Bxd8 {[%clk
0:01:25.6]} 31. Bd6+ {[%clk 0:00:41.3]} 31... Ke8 {[%clk 0:01:21.2]} 32. f3
{[%clk 0:00:38.1]} 32... a5 {[%clk 0:01:21.1]} 33. Kf2 {[%clk 0:00:35.5]} 33...
g5 {[%clk 0:01:19.1]} 34. Ke3 {[%clk 0:00:34.9]} 34... axb4 {[%clk 0:01:16.4]}
35. cxb4 {[%clk 0:00:35.6]} 35... h5 {[%clk 0:01:16.4]} 36. Kd4 {[%clk
0:00:30.5]} 36... Kd7 {[%clk 0:01:15.7]} 37. Bf8 {[%clk 0:00:30.4]} 37... Ne8
{[%clk 0:01:09.6]} 38. Bf7 {[%clk 0:00:30.8]} 38... Bf6+ {[%clk 0:01:10.3]} 39.
Kd3 {[%clk 0:00:24.6]} 39... h4 {[%clk 0:01:05.5]} 40. a5 {[%clk 0:00:24.2]}
40... bxa5 {[%clk 0:01:06]} 41. bxa5 {[%clk 0:00:26.1]} 41... Nc7 {[%clk
0:01:06.5]} 42. Bc4 {[%clk 0:00:24.9]} 42... Kc6 {[%clk 0:01:06.6]} 43. Ke4
{[%clk 0:00:22.7]} 43... g6 {[%clk 0:00:54.7]} 44. Bb4 {[%clk 0:00:23.4]} 44...
Ne8 {[%clk 0:00:50.6]} 45. a6 {[%clk 0:00:16.9]} 45... Kb6 {[%clk 0:00:48]} 46.
Bd2 {[%clk 0:00:17.1]} 46... Nc7 {[%clk 0:00:48.3]} 47. Be3+ {[%clk 0:00:17.9]}
47... Kc6 {[%clk 0:00:48]} 48. a7 {[%clk 0:00:18.8]} 48... Kb7 {[%clk
0:00:48.8]} 49. Bf7 {[%clk 0:00:14.6]} 1-0

[Event "*** Titled Tuesday 3|2 Blitz"]
[Site "Chess.com"]
[Date "2016.02.02"]
[Round "7"]
[White "kharposh"]
[Black "Journey_to_GrandMaster_YT"]
[Result "1-0"]
[WhiteElo "2065"]
[BlackElo "2241"]
[TimeControl "180+2"]
[EndTime "12:31:03 PST"]
[Termination "kharposh won on time"]

1. e4 {[%clk 0:03:00]} 1... d6 {[%clk 0:03:01]} 2. d4 {[%clk 0:03:00]} 2... Nf6
{[%clk 0:03:02.2]} 3. Nc3 {[%clk 0:03:00]} 3... e5 {[%clk 0:03:03.6]} 4. dxe5
{[%clk 0:02:59.8]} 4... dxe5 {[%clk 0:02:50]} 5. Qxd8+ {[%clk 0:03:01.7]} 5...
Kxd8 {[%clk 0:02:50.7]} 6. Bc4 {[%clk 0:02:58.7]} 6... Ke8 {[%clk 0:02:50.4]} 7.
Nf3 {[%clk 0:02:50.6]} 7... Bd6 {[%clk 0:02:47]} 8. O-O {[%clk 0:02:40.5]} 8...
c6 {[%clk 0:02:39.2]} 9. Rd1 {[%clk 0:02:33.9]} 9... Bc7 {[%clk 0:02:39.1]} 10.
a4 {[%clk 0:02:22.7]} 10... Bg4 {[%clk 0:02:37.7]} 11. Rd3 {[%clk 0:02:07.7]}
11... Nbd7 {[%clk 0:02:31.9]} 12. h3 {[%clk 0:02:01.1]} 12... Bh5 {[%clk
0:02:28.4]} 13. g4 {[%clk 0:01:54.2]} 13... Bg6 {[%clk 0:02:28.8]} 14. Re3
{[%clk 0:01:50.3]} 14... Nc5 {[%clk 0:02:22.3]} 15. Nd2 {[%clk 0:01:49.2]} 15...
a5 {[%clk 0:02:19.7]} 16. b3 {[%clk 0:01:32.4]} 16... Rd8 {[%clk 0:02:18.2]} 17.
Re2 {[%clk 0:01:31.5]} 17... Rd4 {[%clk 0:01:36.6]} 18. f3 {[%clk 0:01:25.8]}
18... Bb6 {[%clk 0:01:28.2]} 19. Kg2 {[%clk 0:01:26]} 19... Ke7 {[%clk
0:01:18.9]} 20. Ba3 {[%clk 0:01:21.8]} 20... Rhd8 {[%clk 0:01:18.5]} 21. Nf1
{[%clk 0:01:17.1]} 21... Ke8 {[%clk 0:01:14]} 22. Ne3 {[%clk 0:01:14.6]} 22...
Rd2 {[%clk 0:01:11.9]} 23. Kf2 {[%clk 0:01:10.3]} 23... Ne6 {[%clk 0:00:23.4]}
24. Bxe6 {[%clk 0:01:07.2]} 24... fxe6 {[%clk 0:00:24.6]} 25. Re1 {[%clk
0:00:41.9]} 25... Kf7 {[%clk 0:00:18]} 26. h4 {[%clk 0:00:39.8]} 26... Rxe2+
{[%clk 0:00:13.1]} 27. Kxe2 {[%clk 0:00:38]} 27... Bd4 {[%clk 0:00:12.6]} 28.
Ncd1 {[%clk 0:00:31.2]} 28... h5 {[%clk 0:00:13.6]} 29. g5 {[%clk 0:00:29]}
29... Nd7 {[%clk 0:00:14.7]} 30. c3 {[%clk 0:00:25.1]} 30... Bc5 {[%clk
0:00:03.3]} 31. Bb2 {[%clk 0:00:25]} 31... Ke7 {[%clk 0:00:02.9]} 32. Nc4 {[%clk
0:00:24.1]} 32... b6 {[%clk 0:00:04]} 33. Nde3 {[%clk 0:00:21.8]} 33... Bd6
{[%clk 0:00:04.7]} 34. Nxd6 {[%clk 0:00:21.8]} 34... Kxd6 {[%clk 0:00:05.6]} 35.
Rd1+ {[%clk 0:00:22.1]} 35... Kc7 {[%clk 0:00:06.7]} 36. Nc4 {[%clk 0:00:21.3]}
36... Bf7 {[%clk 0:00:01.6]} 37. Ba3 {[%clk 0:00:20.7]} 37... g6 {[%clk
0:00:01.1]} 38. Bd6+ {[%clk 0:00:20.1]} 1-0

[Event "*** Titled Tuesday 3|2 Blitz"]
[Site "Chess.com"]
[Date "2016.02.02"]
[Round "7"]
[White "nonsopolo1"]
[Black "Zkid"]
[Result "0-1"]
[WhiteElo "2155"]
[BlackElo "2423"]
[TimeControl "180+2"]
[EndTime "12:31:21 PST"]
[Termination "Zkid won by resignation"]

1. e4 {[%clk 0:03:01.1]} 1... e6 {[%clk 0:02:58.8]} 2. d4 {[%clk 0:03:01.1]}
2... d5 {[%clk 0:03:00]} 3. Nd2 {[%clk 0:03:00]} 3... Nf6 {[%clk 0:02:57.9]} 4.
e5 {[%clk 0:02:59.1]} 4... Nfd7 {[%clk 0:02:59.1]} 5. Bd3 {[%clk 0:02:59]} 5...
c5 {[%clk 0:03:00.5]} 6. c3 {[%clk 0:02:59.4]} 6... Nc6 {[%clk 0:03:02.1]} 7.
Ne2 {[%clk 0:03:00]} 7... cxd4 {[%clk 0:03:02]} 8. cxd4 {[%clk 0:03:00.1]} 8...
f6 {[%clk 0:03:03.6]} 9. exf6 {[%clk 0:03:00.3]} 9... Nxf6 {[%clk 0:03:05.5]}
10. O-O {[%clk 0:02:59.9]} 10... Bd6 {[%clk 0:03:05.7]} 11. Nf3 {[%clk
0:03:00.2]} 11... Qc7 {[%clk 0:03:06.8]} 12. Nc3 {[%clk 0:02:58.9]} 12... a6
{[%clk 0:03:07.4]} 13. Bg5 {[%clk 0:02:59.2]} 13... O-O {[%clk 0:03:08.2]} 14.
Bh4 {[%clk 0:02:57.4]} 14... Nh5 {[%clk 0:03:04.6]} 15. Bg3 {[%clk 0:02:44.7]}
15... Nxg3 {[%clk 0:03:02.7]} 16. hxg3 {[%clk 0:02:44.8]} 16... g6 {[%clk
0:02:59.6]} 17. Rc1 {[%clk 0:02:42.5]} 17... Qg7 {[%clk 0:02:59.7]} 18. Bb1
{[%clk 0:02:41.4]} 18... g5 {[%clk 0:02:42]} 19. Na4 {[%clk 0:02:38]} 19... g4
{[%clk 0:02:39.5]} 20. Ne5 {[%clk 0:02:24.9]} 20... Nxe5 {[%clk 0:02:24]} 21.
dxe5 {[%clk 0:02:18]} 21... Bxe5 {[%clk 0:02:23.5]} 22. b3 {[%clk 0:02:13]}
22... Bd4 {[%clk 0:02:16.3]} 23. Nc5 {[%clk 0:01:54.3]} 23... e5 {[%clk
0:02:06.7]} 24. Nd3 {[%clk 0:01:48.7]} 24... Be6 {[%clk 0:01:54]} 25. Nc5 {[%clk
0:01:42.8]} 25... Bc8 {[%clk 0:01:48.9]} 26. Nd3 {[%clk 0:01:41.5]} 26... b6
{[%clk 0:01:47]} 27. Nb4 {[%clk 0:01:39.4]} 27... Bb7 {[%clk 0:01:41.4]} 28. Nc6
{[%clk 0:01:26.7]} 28... Bxc6 {[%clk 0:01:40]} 29. Rxc6 {[%clk 0:01:26.3]} 29...
Rac8 {[%clk 0:01:39.6]} 30. Qc2 {[%clk 0:01:22.9]} 30... Rxc6 {[%clk 0:01:35.5]}
31. Qxc6 {[%clk 0:01:22.2]} 31... Qf7 {[%clk 0:01:36]} 32. Qc2 {[%clk
0:01:13.5]} 32... e4 {[%clk 0:01:34.3]} 33. Qe2 {[%clk 0:01:10.8]} 33... Qf5
{[%clk 0:01:28]} 34. a3 {[%clk 0:01:06]} 34... Rf6 {[%clk 0:01:21]} 35. b4
{[%clk 0:01:05.7]} 35... b5 {[%clk 0:00:52.9]} 36. Ba2 {[%clk 0:01:01.8]} 36...
Kg7 {[%clk 0:00:37.3]} 37. Qd2 {[%clk 0:01:00.5]} 37... Qe5 {[%clk 0:00:34.7]}
38. Qd1 {[%clk 0:00:55.1]} 38... h5 {[%clk 0:00:34]} 39. Kh2 {[%clk 0:00:52.9]}
39... Bxf2 {[%clk 0:00:31.4]} 40. Rxf2 {[%clk 0:00:44.9]} 40... Rxf2 {[%clk
0:00:30.7]} 41. Bxd5 {[%clk 0:00:42.7]} 41... e3 {[%clk 0:00:15.8]} 42. Bb7
{[%clk 0:00:37.5]} 42... e2 {[%clk 0:00:14.8]} 43. Qd7+ {[%clk 0:00:37.2]} 43...
Rf7 {[%clk 0:00:14.7]} 44. Qd5 {[%clk 0:00:29.1]} 44... Qxd5 {[%clk 0:00:13.5]}
45. Bxd5 {[%clk 0:00:28.9]} 45... Rf1 {[%clk 0:00:13.1]} 46. a4 {[%clk
0:00:25.7]} 46... e1=R {[%clk 0:00:12.9]} 0-1

[Event "*** Titled Tuesday 3|2 Blitz"]
[Site "Chess.com"]
[Date "2016.02.02"]
[Round "7"]
[White "maciek_92"]
[Black "stepanosinovsky"]
[Result "0-1"]
[WhiteElo "2449"]
[BlackElo "2283"]
[TimeControl "180+2"]
[EndTime "12:32:05 PST"]
[Termination "stepanosinovsky won by resignation"]

1. e4 {[%clk 0:02:51.5]} 1... e5 {[%clk 0:03:00.7]} 2. Nf3 {[%clk 0:02:51.6]}
2... Nc6 {[%clk 0:03:02.2]} 3. Bc4 {[%clk 0:02:51.9]} 3... Nf6 {[%clk
0:03:02.8]} 4. Ng5 {[%clk 0:02:51]} 4... d5 {[%clk 0:03:02.2]} 5. exd5 {[%clk
0:02:52.9]} 5... Na5 {[%clk 0:03:03.3]} 6. Bb5+ {[%clk 0:02:53.7]} 6... c6
{[%clk 0:03:04.9]} 7. dxc6 {[%clk 0:02:55.6]} 7... bxc6 {[%clk 0:03:06.8]} 8.
Be2 {[%clk 0:02:56.6]} 8... h6 {[%clk 0:03:07.1]} 9. Nh3 {[%clk 0:02:56.3]} 9...
Bxh3 {[%clk 0:03:04.7]} 10. gxh3 {[%clk 0:02:56.3]} 10... Bd6 {[%clk 0:03:02.8]}
11. d3 {[%clk 0:02:56.8]} 11... O-O {[%clk 0:02:59.9]} 12. Nc3 {[%clk
0:02:57.7]} 12... Nb7 {[%clk 0:02:55.2]} 13. Bf3 {[%clk 0:02:55.4]} 13... Qc7
{[%clk 0:02:41.9]} 14. Bg2 {[%clk 0:02:51.5]} 14... Nc5 {[%clk 0:02:41.2]} 15.
O-O {[%clk 0:02:50.8]} 15... Rad8 {[%clk 0:02:40.1]} 16. Qe2 {[%clk 0:02:51]}
16... Rfe8 {[%clk 0:02:32.4]} 17. Be3 {[%clk 0:02:51.4]} 17... e4 {[%clk
0:02:20.4]} 18. Bxc5 {[%clk 0:02:42.6]} 18... Bxc5 {[%clk 0:01:48]} 19. Nxe4
{[%clk 0:02:35.4]} 19... Nxe4 {[%clk 0:01:34.5]} 20. dxe4 {[%clk 0:02:35.7]}
20... Bd6 {[%clk 0:01:35.3]} 21. Rad1 {[%clk 0:02:35.1]} 21... Bxh2+ {[%clk
0:01:36.2]} 22. Kh1 {[%clk 0:02:36.2]} 22... Be5 {[%clk 0:01:35.9]} 23. b3
{[%clk 0:02:33.3]} 23... Rd6 {[%clk 0:01:28.8]} 24. Rxd6 {[%clk 0:02:32.7]}
24... Qxd6 {[%clk 0:01:29.9]} 25. Qg4 {[%clk 0:02:33.5]} 25... Bf4 {[%clk
0:01:25.3]} 26. Rd1 {[%clk 0:02:33.9]} 26... Qf6 {[%clk 0:01:21.2]} 27. Bf3
{[%clk 0:02:30.6]} 27... g6 {[%clk 0:01:04.8]} 28. Kg2 {[%clk 0:02:29.5]} 28...
Kh7 {[%clk 0:01:00]} 29. Qd7 {[%clk 0:02:15.3]} 29... Re5 {[%clk 0:00:51.9]} 30.
Kf1 {[%clk 0:02:07.7]} 30... Bg5 {[%clk 0:00:24.1]} 31. Ke2 {[%clk 0:02:05.5]}
31... Re7 {[%clk 0:00:23.1]} 32. Qd6 {[%clk 0:02:05.4]} 32... Qc3 {[%clk
0:00:18.6]} 33. Qd3 {[%clk 0:02:04.8]} 33... Qe5 {[%clk 0:00:15]} 34. a4 {[%clk
0:02:05.3]} 34... h5 {[%clk 0:00:13.3]} 35. Qc4 {[%clk 0:02:05.3]} 35... f5
{[%clk 0:00:11.1]} 36. Bg2 {[%clk 0:01:39.1]} 36... fxe4 {[%clk 0:00:10.8]} 37.
Rd4 {[%clk 0:01:31.7]} 37... e3 {[%clk 0:00:10.6]} 38. Re4 {[%clk 0:01:33]}
38... Qf6 {[%clk 0:00:08.3]} 39. fxe3 {[%clk 0:01:32.2]} 39... Rf7 {[%clk
0:00:03.6]} 40. Qe6 {[%clk 0:01:01.9]} 40... Qf2+ {[%clk 0:00:04.3]} 41. Kd3
{[%clk 0:01:03.5]} 41... Rf6 {[%clk 0:00:04.2]} 42. Qd7+ {[%clk 0:01:03.7]}
42... Rf7 {[%clk 0:00:05.3]} 43. Qe8 {[%clk 0:01:01.1]} 43... Rf8 {[%clk
0:00:04.7]} 44. Qd7+ {[%clk 0:00:45.5]} 44... Kh6 {[%clk 0:00:05.8]} 45. h4
{[%clk 0:00:40.6]} 45... Bf6 {[%clk 0:00:04.4]} 46. Qxc6 {[%clk 0:00:16.4]}
46... Qxg2 {[%clk 0:00:03.3]} 47. Re6 {[%clk 0:00:13.6]} 47... Rd8+ {[%clk
0:00:02.7]} 48. Kc4 {[%clk 0:00:14.7]} 48... Qf1+ {[%clk 0:00:03.1]} 49. Kb4
{[%clk 0:00:15.2]} 49... Rb8+ {[%clk 0:00:03.3]} 50. Ka5 {[%clk 0:00:15.8]}
50... Bd8+ {[%clk 0:00:03.8]} 0-1

[Event "*** Titled Tuesday 3|2 Blitz"]
[Site "Chess.com"]
[Date "2016.02.02"]
[Round "7"]
[White "Gabrielian_Artur"]
[Black "ftorodent"]
[Result "1-0"]
[WhiteElo "2469"]
[BlackElo "2319"]
[TimeControl "180+2"]
[EndTime "12:32:08 PST"]
[Termination "Gabrielian_Artur won on time"]

1. Nf3 {[%clk 0:03:01.9]} 1... d5 {[%clk 0:03:00]} 2. g3 {[%clk 0:03:02.9]} 2...
c6 {[%clk 0:03:00.3]} 3. Bg2 {[%clk 0:03:04.3]} 3... Bg4 {[%clk 0:03:01]} 4. O-O
{[%clk 0:03:05.4]} 4... Nd7 {[%clk 0:03:01.4]} 5. d3 {[%clk 0:03:06.9]} 5...
Ngf6 {[%clk 0:03:01.4]} 6. Qe1 {[%clk 0:03:07.9]} 6... e5 {[%clk 0:03:00.7]} 7.
e4 {[%clk 0:03:09.2]} 7... dxe4 {[%clk 0:03:01.6]} 8. dxe4 {[%clk 0:03:10.4]}
8... Be7 {[%clk 0:03:01.6]} 9. h3 {[%clk 0:03:10.3]} 9... Bh5 {[%clk 0:03:00.4]}
10. Nbd2 {[%clk 0:03:11.1]} 10... Qc7 {[%clk 0:02:56.8]} 11. Nh4 {[%clk
0:03:11.4]} 11... O-O {[%clk 0:02:50.7]} 12. Nf5 {[%clk 0:03:11.2]} 12... Bc5
{[%clk 0:02:49.2]} 13. Nb3 {[%clk 0:03:11]} 13... Bb6 {[%clk 0:02:50]} 14. a4
{[%clk 0:03:12]} 14... a5 {[%clk 0:02:49.1]} 15. Be3 {[%clk 0:03:12.9]} 15...
Bxe3 {[%clk 0:02:47.1]} 16. Qxe3 {[%clk 0:03:13.6]} 16... Rfd8 {[%clk
0:02:43.2]} 17. g4 {[%clk 0:02:52.4]} 17... Bg6 {[%clk 0:02:43.5]} 18. Rfd1
{[%clk 0:02:53.3]} 18... Nf8 {[%clk 0:02:36.9]} 19. Qc5 {[%clk 0:02:34.9]} 19...
Ne6 {[%clk 0:01:44.4]} 20. Rxd8+ {[%clk 0:02:33.9]} 20... Nxd8 {[%clk
0:01:45.5]} 21. Ne7+ {[%clk 0:02:21.4]} 21... Kh8 {[%clk 0:01:46]} 22. Nd5
{[%clk 0:02:19.9]} 22... Qb8 {[%clk 0:01:23.9]} 23. Nxf6 {[%clk 0:01:46.6]}
23... Ne6 {[%clk 0:01:24.4]} 24. Qe7 {[%clk 0:01:42.1]} 24... gxf6 {[%clk
0:01:18.4]} 25. Qxf6+ {[%clk 0:01:42.9]} 25... Kg8 {[%clk 0:01:20]} 26. Rd1
{[%clk 0:01:43]} 26... Qc7 {[%clk 0:01:18.1]} 27. Bf1 {[%clk 0:01:41.5]} 27...
b5 {[%clk 0:01:03.9]} 28. axb5 {[%clk 0:01:04.5]} 28... a4 {[%clk 0:01:04.5]}
29. Nd2 {[%clk 0:00:52.9]} 29... cxb5 {[%clk 0:01:04.7]} 30. Bd3 {[%clk
0:00:49.6]} 30... Nf4 {[%clk 0:00:55.8]} 31. Nf3 {[%clk 0:00:44.4]} 31... Nxh3+
{[%clk 0:00:52.9]} 32. Kf1 {[%clk 0:00:41.3]} 32... Re8 {[%clk 0:00:46.8]} 33.
c3 {[%clk 0:00:35.4]} 33... Qc5 {[%clk 0:00:43.6]} 34. Nh4 {[%clk 0:00:25.6]}
34... Nf4 {[%clk 0:00:37.9]} 35. Nf5 {[%clk 0:00:19.8]} 35... Bxf5 {[%clk
0:00:30.2]} 36. gxf5 {[%clk 0:00:21.1]} 36... b4 {[%clk 0:00:24.6]} 37. Qg5+
{[%clk 0:00:21.3]} 37... Kh8 {[%clk 0:00:23]} 38. Qf6+ {[%clk 0:00:22.3]} 38...
Kg8 {[%clk 0:00:23.8]} 39. cxb4 {[%clk 0:00:21.5]} 39... Qxb4 {[%clk 0:00:23.7]}
40. Qg5+ {[%clk 0:00:22.4]} 40... Kf8 {[%clk 0:00:23.9]} 41. Qh6+ {[%clk
0:00:22.3]} 41... Kg8 {[%clk 0:00:24.4]} 42. f6 {[%clk 0:00:23.1]} 42... Ne6
{[%clk 0:00:23.7]} 43. Ke2 {[%clk 0:00:21.6]} 43... Qxb2+ {[%clk 0:00:22.6]} 44.
Kf3 {[%clk 0:00:23]} 44... Nd4+ {[%clk 0:00:21.3]} 45. Kg2 {[%clk 0:00:22.1]}
45... Ne6 {[%clk 0:00:22.1]} 46. Rh1 {[%clk 0:00:19.8]} 46... Nf4+ {[%clk
0:00:08]} 47. Kg3 {[%clk 0:00:21.1]} 1-0